fUST/lending_fUST_20240916
["ID","MTS","AMOUNT","RATE_DAILY","PERIOD"]
[338261223,1726455945148,-408.80296803,0.0002087,2]
[338261225,1726456050659,-1697.54172834,0.0002087,2]
[338261228,1726456178922,162.8291668,0.00019597,2]
[338261235,1726456232432,-2175.13508955,0.00020863,2]
[338261237,1726456232613,-310.73830779,0.00020863,2]
[338261238,1726456232625,-507.49957287,0.00020863,2]
[338261239,1726456232637,-758.51949775,0.00020863,2]
[338261240,1726456232649,-582.01,0.00020863,2]
[338261303,1726456238934,-373.8212371,0.00020863,2]
[338261345,1726456243666,-292.27629494,0.00020863,2]
[338261346,1726456243675,-300.0,0.00020868,2]
[338261347,1726456243685,-300.0,0.00020868,2]
[338261348,1726456243695,-5000.0,0.00020869,2]
[338261349,1726456243704,-2893.65530363,0.0002087,2]
[338261350,1726456243714,-5000.0,0.00020871,2]
[338261351,1726456243723,-1024.52251964,0.00020871,2]
[338261382,1726456246986,-188.61574759,0.00020871,2]
[338261385,1726456277360,77.80126906,0.00019873,2]
[338261407,1726457319747,11556.34026891,0.0001,2]
[338261408,1726457358168,-165.8620889,0.00017728,2]
[338261409,1726457358190,-475.67036612,0.0001851,2]
[338261410,1726457359125,-2524.32963388,0.0001851,2]
[338261411,1726457359148,-1999.5057366,0.00018709,2]
[338261412,1726457359170,-300.0,0.00018884,2]
[338261413,1726457359193,-1340.98594037,0.00018884,5]
[338261414,1726457359216,-24900.0,0.00018885,2]
[338261415,1726457359240,-250.0,0.00019618,2]
[338261416,1726457359264,-250.0,0.00019672,2]
[338261417,1726457359287,-250.0,0.00019726,2]
[338261418,1726457359309,-192.79035955,0.00019772,2]
[338261419,1726457359332,-250.0,0.0001978,2]
[338261420,1726457359362,-250.0,0.00019834,2]
[338261421,1726457359384,-4699.88813671,0.00019872,2]
[338261511,1726457438744,-300.11186329,0.00019872,2]
[338261513,1726457438753,-250.0,0.00019988,2]
[338261514,1726457438762,-250.0,0.00020042,2]
[338261516,1726457438771,-250.0,0.00020097,2]
[338261518,1726457438780,-250.0,0.00020152,2]
[338261519,1726457438790,-250.0,0.00020207,2]
[338261521,1726457438799,-250.0,0.00020262,2]
[338261523,1726457438808,-250.0,0.00020317,2]
[338261525,1726457438817,-250.0,0.00020371,2]
[338261526,1726457438827,-250.0,0.00020426,2]
[338261527,1726457438836,-250.0,0.00020481,2]
[338261528,1726457439070,-500.0,0.000205,2]
[338261529,1726457439086,-250.0,0.00020536,2]
[338261530,1726457439096,-250.0,0.00020591,2]
[338261531,1726457439105,-250.0,0.00020646,2]
[338261532,1726457439115,-250.0,0.000207,2]
[338261533,1726457439124,-250.0,0.00020755,2]
[338261534,1726457439134,-1262.96854236,0.00020773,2]
[338261535,1726457439143,-1883.37347678,0.00020775,2]
[338261536,1726457439152,-250.0,0.0002081,2]
[338261537,1726457439162,-250.0,0.00020865,2]
[338261538,1726457439171,-249.40713359,0.00020869,2]
[338261539,1726457439180,-300.0,0.0002087,2]
[338261540,1726457439190,-248.0,0.00020871,2]
[338261541,1726457439200,-3786.86173277,0.00020871,2]
[338261542,1726457439210,-5000.0,0.00020872,2]
[338261543,1726457439219,-5000.0,0.00020872,2]
[338261544,1726457439229,-5000.0,0.00020872,2]
[338261545,1726457439239,-5000.0,0.00020872,2]
[338261546,1726457439248,-5000.0,0.00020873,2]
[338261547,1726457439258,-7432.0,0.00020874,2]
[338261548,1726457439268,-5000.0,0.00020874,2]
[338261549,1726457439277,-5000.0,0.00020875,2]
[338261550,1726457439286,-237.07,0.00020897,3]
[338261551,1726457439295,-711.25,0.00020897,3]
[338261552,1726457439305,-670.49297018,0.00020907,5]
[338261553,1726457439314,-15834.2824154,0.00020907,3]
[338261554,1726457439324,-29043.7137866,0.00020907,3]
[338261555,1726457439333,-500.0,0.00020916,2]
[338261556,1726457439342,-500.0,0.00020916,2]
[338261557,1726457439352,-500.0,0.00020916,2]
[338261558,1726457439361,-500.0,0.00020916,2]
[338261559,1726457439370,-500.0,0.00020916,2]
[338261560,1726457439380,-390.10075424,0.00020916,2]
[338261561,1726457439390,-500.0,0.00020916,2]
[338261562,1726457439400,-370.43778964,0.00020916,2]
[338261563,1726457439410,-500.0,0.00020916,2]
[338261564,1726457439419,-500.0,0.00020916,2]
[338261565,1726457439429,-609.26190473,0.00020916,2]
[338261566,1726457439438,-500.0,0.00020916,2]
[338261567,1726457439447,-500.0,0.00020916,2]
[338261568,1726457439456,-500.0,0.00020916,2]
[338261569,1726457439466,-500.0,0.00020916,2]
[338261570,1726457439476,-500.0,0.00020916,2]
[338261571,1726457439486,-500.0,0.00020916,2]
[338261572,1726457439495,-500.0,0.00020916,2]
[338261573,1726457439505,-500.0,0.00020916,2]
[338261574,1726457439515,-500.0,0.00020916,2]
[338261575,1726457439524,-616.70906658,0.00020916,2]
[338261576,1726457439533,-500.0,0.00020916,2]
[338261577,1726457439542,-500.0,0.00020916,2]
[338261578,1726457439551,-500.0,0.00020916,2]
[338261579,1726457439565,-500.0,0.00020916,2]
[338261580,1726457439575,-500.0,0.00020916,2]
[338261581,1726457439585,-500.0,0.00020916,2]
[338261582,1726457439594,-500.0,0.00020916,2]
[338261583,1726457439604,-500.0,0.00020916,2]
[338261584,1726457439614,-500.0,0.00020916,2]
[338261585,1726457439624,-500.0,0.00020916,2]
[338261586,1726457439635,-500.0,0.00020916,2]
[338261587,1726457439645,-500.0,0.00020916,2]
[338261588,1726457439655,-500.0,0.00020916,2]
[338261589,1726457439665,-500.0,0.00020916,2]
[338261590,1726457439674,-500.0,0.00020916,2]
[338261591,1726457439684,-500.0,0.00020916,2]
[338261592,1726457439693,-500.0,0.00020916,2]
[338261593,1726457439703,-500.0,0.00020916,2]
[338261594,1726457439713,-500.0,0.00020916,2]
[338261595,1726457439722,-500.0,0.00020916,2]
[338261596,1726457439732,-500.0,0.00020916,2]
[338261597,1726457439742,-500.0,0.00020916,2]
[338261598,1726457439753,-500.0,0.00020916,2]
[338261599,1726457439764,-500.0,0.00020916,2]
[338261600,1726457439774,-500.0,0.00020916,2]
[338261601,1726457439783,-500.0,0.00020916,2]
[338261602,1726457439793,-500.0,0.00020916,2]
[338261603,1726457439803,-500.0,0.00020916,2]
[338261604,1726457439813,-500.0,0.00020916,2]
[338261605,1726457439823,-500.0,0.00020916,2]
[338261606,1726457439833,-500.0,0.00020916,2]
[338261607,1726457439842,-500.0,0.00020916,2]
[338261608,1726457439851,-500.0,0.00020916,2]
[338261609,1726457439861,-500.0,0.00020916,2]
[338261610,1726457439871,-500.0,0.00020916,2]
[338261611,1726457439882,-500.0,0.00020916,2]
[338261612,1726457439891,-500.0,0.00020916,2]
[338261613,1726457439902,-500.0,0.00020916,2]
[338261614,1726457439912,-500.0,0.00020916,2]
[338261615,1726457439922,-500.0,0.00020916,2]
[338261616,1726457439932,-500.0,0.00020916,2]
[338261617,1726457439941,-500.0,0.00020916,2]
[338261618,1726457439951,-500.0,0.00020916,2]
[338261619,1726457439961,-500.0,0.00020916,2]
[338261620,1726457439971,-500.0,0.00020916,2]
[338261621,1726457439982,-500.0,0.00020916,2]
[338261622,1726457439991,-500.0,0.00020916,2]
[338261623,1726457440001,-500.0,0.00020916,2]
[338261624,1726457440010,-500.0,0.00020916,2]
[338261625,1726457440020,-500.0,0.00020916,2]
[338261626,1726457440030,-500.0,0.00020916,2]
[338261627,1726457440040,-500.0,0.00020916,2]
[338261628,1726457440049,-500.0,0.00020916,2]
[338261629,1726457440060,-500.0,0.00020916,2]
[338261630,1726457440069,-500.0,0.00020916,2]
[338261631,1726457440078,-649.99999999,0.00020916,2]
[338261632,1726457440087,-500.0,0.00020916,2]
[338261633,1726457440097,-500.0,0.00020916,2]
[338261634,1726457440106,-500.0,0.00020916,2]
[338261635,1726457440116,-500.0,0.00020916,2]
[338261636,1726457440125,-500.0,0.00020916,2]
[338261637,1726457440135,-500.0,0.00020916,2]
[338261638,1726457440146,-500.0,0.00020916,2]
[338261639,1726457440156,-500.0,0.00020916,2]
[338261640,1726457440165,-500.0,0.00020916,2]
[338261641,1726457440174,-500.0,0.00020916,2]
[338261642,1726457440183,-500.0,0.00020916,2]
[338261643,1726457440192,-500.0,0.00020916,2]
[338261644,1726457440202,-500.0,0.00020916,2]
[338261645,1726457440211,-500.0,0.00020916,2]
[338261646,1726457440221,-500.0,0.00020916,2]
[338261647,1726457440231,-499.99999999,0.00020916,2]
[338261648,1726457440240,-500.0,0.00020917,7]
[338261649,1726457440250,-500.0,0.00020917,7]
[338261650,1726457440259,-500.0,0.00020917,7]
[338261651,1726457440269,-500.0,0.00020917,7]
[338261652,1726457440279,-500.0,0.00020917,7]
[338261653,1726457440289,-500.0,0.00020917,7]
[338261655,1726457440299,-500.0,0.00020917,7]
[338261657,1726457440308,-500.0,0.00020917,7]
[338261658,1726457440318,-500.0,0.00020917,7]
[338261659,1726457440328,-500.0,0.00020917,7]
[338261660,1726457440337,-500.0,0.00020917,7]
[338261661,1726457440347,-500.0,0.00020917,7]
[338261662,1726457440357,-500.0,0.00020917,7]
[338261663,1726457440367,-500.0,0.00020917,7]
[338261664,1726457440376,-500.0,0.00020917,7]
[338261665,1726457440386,-500.0,0.00020917,7]
[338261666,1726457440399,-500.0,0.00020917,7]
[338261667,1726457440409,-500.0,0.00020917,7]
[338261668,1726457440420,-500.0,0.00020917,7]
[338261669,1726457440431,-500.0,0.00020917,7]
[338261670,1726457440440,-500.0,0.00020917,7]
[338261671,1726457440451,-565.77,0.00020917,7]
[338261672,1726457440461,-500.0,0.00020917,7]
[338261673,1726457440471,-596.92,0.00020917,7]
[338261675,1726457440480,-500.0,0.00020917,7]
[338261677,1726457440490,-500.0,0.00020917,7]
[338261679,1726457440499,-250.0,0.0002092,2]
[338261680,1726457440509,-250.0,0.00020974,2]
[338261682,1726457440519,-250.0,0.00021029,2]
[338261684,1726457440528,-1883.37347674,0.00021033,2]
[338261686,1726457440537,-160.97236498,0.00021214,5]
[338261688,1726457440547,-1262.96854236,0.00021235,2]
[338261690,1726457440557,-1883.37347674,0.00021291,2]
[338261692,1726457440569,-600.0,0.00021303,2]
[338261693,1726457440579,-501.44984943,0.00021525,2]
[338261695,1726457440588,-600.0,0.00021525,2]
[338261697,1726457440598,-1883.37347674,0.00021549,2]
[338261698,1726457440608,-151.0,0.00021549,2]
[338261699,1726457440617,-1262.96854236,0.00021698,2]
[338261700,1726457440627,-159.4,0.00021715,2]
[338261701,1726457440638,-600.0,0.00021747,2]
[338261702,1726457440652,-183.747132,0.000218,2]
[338261703,1726457440661,-1883.37347674,0.00021807,2]
[338261705,1726457440671,-665.81852297,0.00021817,2]
[338261707,1726457440681,-3933.06915817,0.00021817,2]
[338261709,1726457440690,-197.49962917,0.00021817,2]
[338261711,1726457440699,-187.34767303,0.00021817,2]
[338261713,1726457440710,-164.0,0.00021854,2]
[338261714,1726457440719,-267.103,0.00021854,2]
[338261715,1726457440729,-15834.2824154,0.00021855,3]
[338261716,1726457440739,-29043.7137866,0.00021855,3]
[338261717,1726457440748,-151.0,0.00021855,2]
[338261718,1726457440757,-151.0,0.00021855,2]
[338261719,1726457440767,-178.656855,0.00021867,2]
[338261720,1726457440776,-178.656855,0.00021867,2]
[338261721,1726457440785,-159.4,0.00021867,2]
[338261722,1726457440793,-268.050289,0.00021867,2]
[338261723,1726457440805,-151.0,0.00021867,2]
[338261724,1726457440815,-151.0,0.00021867,2]
[338261725,1726457440823,-151.0,0.00021867,2]
[338261726,1726457440833,-173.209086,0.00021867,2]
[338261727,1726457440842,-173.209086,0.00021867,2]
[338261728,1726457440851,-308.11235,0.00021877,2]
[338261729,1726457440860,-308.11235,0.00021877,2]
[338261730,1726457440870,-257.10181957,0.00021886,2]
[338261731,1726457440879,-345.76896683,0.00021886,2]
[338261732,1726457440888,-500.0,0.00021886,2]
[338261733,1726457440898,-453.7613426,0.00021886,2]
[338261734,1726457440907,-500.0,0.00021886,2]
[338261735,1726457440916,-40852.46680582,0.00021886,5]
[338261736,1726457440925,-15834.2824154,0.00021886,3]
[338261737,1726457440934,-29043.7137866,0.00021886,3]
[338261738,1726457440944,-105.29413182,0.00021887,3]
[338261765,1726457893854,190.6183078,0.00013699,2]
[338261781,1726458451127,-188.37977,0.00018872,2]
[338261782,1726458451152,-495.02328768,0.00019727,2]
[338261784,1726458550167,-188.37977,0.00018462,2]
[338261785,1726458550192,-750.410693,0.00019357,2]
[338261787,1726458550213,-205.18103662,0.00019727,2]
[338261788,1726458550236,-300.0,0.00019844,2]
[338261789,1726458550258,-300.0,0.00019844,2]
[338261790,1726458550281,-24610.44654026,0.00019845,2]
[338261834,1726458637890,-24900.0,0.00019984,2]
[338261835,1726458637899,-250.0,0.00020043,2]
[338261836,1726458637909,-250.0,0.00020098,2]
[338261837,1726458637918,-250.0,0.00020153,2]
[338261838,1726458637927,-250.0,0.00020208,2]
[338261839,1726458637937,-250.0,0.00020263,2]
[338261840,1726458637946,-249.3019525,0.00020284,2]
[338261841,1726458637955,-250.0,0.00020318,2]
[338261842,1726458637964,-250.0,0.00020373,2]
[338261843,1726458637978,-250.0,0.00020428,2]
[338261844,1726458637987,-250.0,0.00020482,2]
[338261845,1726458637996,-250.0,0.00020537,2]
[338261846,1726458638006,-250.0,0.00020592,2]
[338261847,1726458638015,-250.0,0.00020647,2]
[338261848,1726458638024,-250.0,0.00020702,2]
[338261849,1726458638034,-250.0,0.00020757,2]
[338261850,1726458638043,-250.0,0.00020812,2]
[338261851,1726458638054,-250.0,0.00020867,2]
[338261852,1726458638063,-789.35533901,0.00020878,2]
[338261853,1726458638072,-300.0,0.00020916,2]
[338261854,1726458638081,-300.0,0.00020916,2]
[338261855,1726458638090,-500.0,0.00020917,7]
[338261856,1726458638099,-500.0,0.00020917,7]
[338261857,1726458638108,-500.0,0.00020917,7]
[338261858,1726458638118,-500.0,0.00020917,7]
[338261859,1726458638127,-500.0,0.00020917,7]
[338261860,1726458638137,-500.0,0.00020917,7]
[338261861,1726458638146,-500.0,0.00020917,7]
[338261862,1726458638155,-596.92,0.00020917,7]
[338261863,1726458638164,-500.0,0.00020917,7]
[338261864,1726458638174,-500.0,0.00020917,7]
[338261865,1726458638182,-500.0,0.00020917,7]
[338261866,1726458638192,-500.0,0.00020917,7]
[338261867,1726458638201,-500.0,0.00020917,7]
[338261868,1726458638211,-500.0,0.00020917,7]
[338261869,1726458638220,-500.0,0.00020917,7]
[338261870,1726458638229,-565.77,0.00020917,7]
[338261871,1726458638239,-500.0,0.00020917,7]
[338261872,1726458638248,-500.0,0.00020917,7]
[338261873,1726458638258,-500.0,0.00020917,7]
[338261874,1726458638268,-500.0,0.00020917,7]
[338261875,1726458638277,-500.0,0.00020917,7]
[338261876,1726458638286,-500.0,0.00020917,7]
[338261877,1726458638295,-500.0,0.00020917,7]
[338261878,1726458638304,-250.0,0.00020922,2]
[338261879,1726458638313,-250.0,0.00020977,2]
[338261880,1726458638481,-200.0,0.00021,2]
[338261881,1726458638540,-250.0,0.00021032,2]
[338261882,1726458638549,-250.0,0.00021087,2]
[338261883,1726458638559,-600.0,0.00021303,2]
[338261884,1726458638568,-789.35533897,0.0002131,2]
[338261885,1726458638577,-600.0,0.00021525,2]
[338261886,1726458638586,-789.35533897,0.00021741,2]
[338261887,1726458638595,-600.0,0.00021747,2]
[338261888,1726458638604,-1506.6987814,0.00021777,2]
[338261889,1726458638613,-1506.69878139,0.00021782,2]
[338261890,1726458638623,-1506.69878139,0.00021787,2]
[338261891,1726458638633,-1506.69878139,0.00021792,2]
[338261892,1726458638642,-1506.69878139,0.00021797,2]
[338261893,1726458638651,-150.0,0.000218,2]
[338261894,1726458638660,-3000.0,0.00021817,2]
[338261895,1726458638670,-3933.06915817,0.00021817,2]
[338261896,1726458638679,-150.0,0.00021851,2]
[338261897,1726458638688,-524.0,0.00021851,2]
[338261898,1726458638698,-164.0,0.00021851,2]
[338261899,1726458638708,-150.19,0.00021851,2]
[338261900,1726458638717,-267.103,0.00021851,2]
[338261901,1726458638727,-151.0,0.00021855,2]
[338261902,1726458638736,-474.14,0.00021867,3]
[338261903,1726458638745,-30085.1365892,0.00021877,3]
[338261904,1726458638755,-43379.62683153,0.00021877,3]
[338261905,1726458638768,-600.0,0.00021877,3]
[338262227,1726458642981,-13.09381827,0.00021877,3]
[338262541,1726458645867,-11190.3355448,0.00021877,3]
[338262544,1726458645878,-500.0,0.00021884,2]
[338262546,1726458645889,-178.8068783,0.00021884,2]
[338262548,1726458645899,-500.0,0.00021884,2]
[338262550,1726458645908,-500.0,0.00021884,2]
[338262552,1726458645918,-500.0,0.00021884,2]
[338262554,1726458645927,-500.0,0.00021884,2]
[338262556,1726458645940,-500.0,0.00021884,2]
[338262558,1726458645949,-500.0,0.00021884,2]
[338262560,1726458645959,-500.0,0.00021884,2]
[338262562,1726458645969,-500.0,0.00021884,2]
[338262564,1726458645983,-500.0,0.00021884,2]
[338262566,1726458645992,-500.0,0.00021884,2]
[338262568,1726458646002,-426.67090667,0.00021884,2]
[338262570,1726458646012,-15042.5682946,0.00021886,3]
[338262572,1726458646023,-27591.5280973,0.00021886,3]
[338262574,1726458646032,-257.10181957,0.00021886,2]
[338262577,1726458646042,-345.76896683,0.00021886,2]
[338262579,1726458646052,-453.7613426,0.00021886,2]
[338262581,1726458646062,-500.0,0.00021886,2]
[338262583,1726458646072,-500.0,0.00021886,2]
[338262585,1726458646081,-521.23719941,0.00021886,5]
[338262587,1726458646091,-40852.46680582,0.00021887,5]
[338262589,1726458646102,-45127.7048837,0.00021887,3]
[338262591,1726458646112,-50420.90082315,0.00021887,3]
[338264831,1726458844985,10000.0,0.00014,2]
[338264832,1726458854494,10000.0,0.00014,2]
[338264834,1726458860761,10000.0,0.00014,2]
[338264835,1726458871293,1796.75,0.00014,2]
[338264847,1726459765094,-300.0,0.00019666,2]
[338264848,1726459765117,-300.0,0.00019666,2]
[338264849,1726459765139,-10137.99012153,0.00019667,2]
[338264850,1726459778883,-14762.00987847,0.00019667,2]
[338264882,1726459831847,-267.89313081,0.00020498,2]
[338264885,1726459831860,-2435.52,0.00020498,2]
[338264909,1726459838034,-1912.51429472,0.00020498,2]
[338264911,1726459838043,-501.44984943,0.000205,2]
[338264913,1726459838053,-376.67469538,0.00020785,2]
[338264915,1726459838062,-966.96029025,0.00020817,2]
[338264917,1726459838072,-300.0,0.00020883,2]
[338264919,1726459838081,-300.0,0.00020883,2]
[338264921,1726459838091,-52228.48529748,0.00020884,2]
[338264924,1726459838102,-1555.37470052,0.00020884,2]
[338264926,1726459838111,-500.0,0.00020917,7]
[338264928,1726459838121,-500.0,0.00020917,7]
[338264930,1726459838130,-500.0,0.00020917,7]
[338264932,1726459838139,-198.33149858,0.00020958,2]
[338264934,1726459838148,-161.536819,0.0002104,2]
[338264936,1726459838157,-376.67469535,0.00021041,2]
[338264938,1726459838166,-161.536819,0.00021118,2]
[338264940,1726459838176,-161.536819,0.00021196,2]
[338264942,1726459838185,-160.97236498,0.00021214,5]
[338264944,1726459838195,-966.96029024,0.00021257,2]
[338264946,1726459838204,-161.536819,0.00021273,2]
[338264948,1726459838213,-376.67469535,0.00021296,2]
[338264950,1726459838222,-604.70691513,0.00021303,2]
[338264952,1726459838231,-161.536819,0.00021351,2]
[338264954,1726459838241,-161.536819,0.00021429,2]
[338264955,1726459838249,-161.536819,0.00021507,2]
[338264956,1726459838259,-376.67469535,0.00021552,2]
[338264957,1726459838268,-161.536819,0.00021584,2]
[338264958,1726459838277,-500.0,0.00021643,2]
[338264959,1726459838286,-500.0,0.00021643,2]
[338264960,1726459838296,-500.0,0.00021643,2]
[338264961,1726459838305,-500.0,0.00021643,2]
[338264962,1726459838314,-500.0,0.00021643,2]
[338264963,1726459838324,-500.0,0.00021643,2]
[338264964,1726459838333,-500.0,0.00021643,2]
[338264965,1726459838342,-500.0,0.00021643,2]
[338264966,1726459838351,-239.26792367,0.00021643,2]
[338264967,1726459838361,-161.536819,0.00021662,2]
[338264968,1726459838371,-966.96029024,0.00021698,2]
[338264969,1726459838380,-161.536819,0.0002174,2]
[338264970,1726459838389,-158.05,0.00021797,3]
[338264971,1726459838398,-474.17,0.00021797,3]
[338264972,1726459838407,-11592.7304259,0.00021797,3]
[338264973,1726459838416,-20931.7538415,0.00021797,3]
[338264974,1726459838425,-150.0,0.000218,2]
[338264975,1726459838434,-197.49962917,0.00021802,2]
[338264976,1726459838445,-187.34767303,0.00021802,2]
[338264977,1726459838455,-376.67469535,0.00021807,2]
[338264978,1726459838464,-665.81852297,0.00021817,2]
[338264979,1726459838473,-161.536819,0.00021817,2]
[338264980,1726459838483,-151.0,0.00021835,2]
[338264981,1726459838493,-524.0,0.00021851,2]
[338264982,1726459838502,-164.0,0.00021851,2]
[338264983,1726459838511,-500.0,0.00021871,2]
[338264984,1726459838521,-500.0,0.00021871,2]
[338264985,1726459838530,-500.0,0.00021871,2]
[338264986,1726459838539,-500.0,0.00021871,2]
[338264987,1726459838548,-500.0,0.00021871,2]
[338264988,1726459838557,-370.43778964,0.00021871,2]
[338264989,1726459838566,-500.0,0.00021871,2]
[338264990,1726459838576,-500.0,0.00021871,2]
[338264991,1726459838585,-500.0,0.00021871,2]
[338264992,1726459838595,-500.0,0.00021871,2]
[338264993,1726459838606,-448.33571426,0.00021871,2]
[338264994,1726459838615,-500.0,0.00021871,2]
[338264995,1726459838625,-500.0,0.00021871,2]
[338264996,1726459838634,-500.0,0.00021871,2]
[338264997,1726459838643,-500.0,0.00021871,2]
[338264998,1726459838653,-500.0,0.00021871,2]
[338264999,1726459838662,-500.0,0.00021871,2]
[338265000,1726459838671,-500.0,0.00021871,2]
[338265001,1726459838681,-500.0,0.00021871,2]
[338265002,1726459838690,-500.0,0.00021871,2]
[338265003,1726459838699,-500.0,0.00021871,2]
[338265004,1726459838708,-500.0,0.00021871,2]
[338265005,1726459838717,-390.10075424,0.00021871,2]
[338265006,1726459838726,-500.0,0.00021871,2]
[338265007,1726459838734,-500.0,0.00021871,2]
[338265008,1726459838744,-500.0,0.00021871,2]
[338265009,1726459838753,-500.0,0.00021871,2]
[338265010,1726459838763,-500.0,0.00021871,2]
[338265011,1726459838772,-500.0,0.00021871,2]
[338265012,1726459838781,-500.0,0.00021871,2]
[338265013,1726459838790,-500.0,0.00021871,2]
[338265014,1726459838800,-500.0,0.00021871,2]
[338265015,1726459838810,-500.0,0.00021871,2]
[338265016,1726459838819,-500.0,0.00021871,2]
[338265017,1726459838829,-500.0,0.00021871,2]
[338265018,1726459838838,-500.0,0.00021871,2]
[338265019,1726459838847,-500.0,0.00021871,2]
[338265020,1726459838857,-500.0,0.00021871,2]
[338265021,1726459838867,-500.0,0.00021871,2]
[338265022,1726459838877,-500.0,0.00021871,2]
[338265023,1726459838886,-500.0,0.00021871,2]
[338265024,1726459838895,-500.0,0.00021871,2]
[338265025,1726459838904,-500.0,0.00021871,2]
[338265026,1726459838914,-500.0,0.00021871,2]
[338265027,1726459838923,-500.0,0.00021871,2]
[338265028,1726459838933,-500.0,0.00021871,2]
[338265029,1726459838942,-500.0,0.00021871,2]
[338265030,1726459838951,-500.0,0.00021871,2]
[338265031,1726459838960,-500.0,0.00021871,2]
[338265032,1726459838970,-500.0,0.00021871,2]
[338265033,1726459838979,-500.0,0.00021871,2]
[338265034,1726459838988,-500.0,0.00021871,2]
[338265035,1726459838998,-500.0,0.00021871,2]
[338265036,1726459839007,-500.0,0.00021871,2]
[338265037,1726459839017,-500.0,0.00021871,2]
[338265038,1726459839027,-500.0,0.00021871,2]
[338265039,1726459839036,-500.0,0.00021871,2]
[338265040,1726459839046,-500.0,0.00021871,2]
[338265041,1726459839055,-500.0,0.00021871,2]
[338265042,1726459839064,-500.0,0.00021871,2]
[338265043,1726459839073,-500.0,0.00021871,2]
[338265044,1726459839083,-500.0,0.00021871,2]
[338265045,1726459839092,-500.0,0.00021871,2]
[338265046,1726459839102,-500.0,0.00021871,2]
[338265047,1726459839111,-500.0,0.00021871,2]
[338265048,1726459839121,-582.70525057,0.00021871,2]
[338265049,1726459839130,-500.0,0.00021871,2]
[338265050,1726459839140,-500.0,0.00021871,2]
[338265051,1726459839149,-500.0,0.00021871,2]
[338265052,1726459839158,-500.0,0.00021871,2]
[338265053,1726459839167,-500.0,0.00021871,2]
[338265054,1726459839177,-308.11235,0.00021873,2]
[338265055,1726459839186,-151.0,0.00021873,2]
[338265056,1726459839195,-308.11235,0.00021873,2]
[338265057,1726459839205,-11592.7304259,0.00021873,3]
[338265058,1726459839215,-20931.7538415,0.00021873,3]
[338265059,1726459839224,-11592.7304259,0.00021874,3]
[338265060,1726459839234,-20931.7538415,0.00021874,3]
[338265061,1726459839243,-308.11235,0.00021876,2]
[338265062,1726459839253,-151.0,0.00021876,2]
[338265063,1726459839262,-308.11235,0.00021876,2]
[338265064,1726459839272,-11592.7304259,0.00021877,3]
[338265065,1726459839281,-20931.7538415,0.00021877,3]
[338265066,1726459839291,-1196.42843957,0.00021885,2]
[338265067,1726459839300,-242.03827679,0.00021886,2]
[338265068,1726459839309,-179.9712737,0.00021886,2]
[338265069,1726459839319,-500.0,0.00021886,2]
[338265070,1726459839328,-517.63293982,0.00021886,2]
[338265071,1726459839338,-169.42679375,0.00021886,2]
[338265072,1726459839347,-11592.7304259,0.00021886,3]
[338265073,1726459839357,-20931.7538415,0.00021886,3]
[338265074,1726459839367,-308.11235,0.00021886,2]
[338265075,1726459839376,-151.0,0.00021886,2]
[338265076,1726459839385,-308.11235,0.00021886,2]
[338265077,1726459839395,-20426.23340291,0.00021886,5]